fUST/lending_fUST_20250801
["ID","MTS","AMOUNT","RATE_DAILY","PERIOD"]
[376576848,1754034639062,-422.83,0.00026818,3]
[376576849,1754034639071,-211.42,0.00026818,3]
[376576850,1754034639080,-634.28,0.00026818,3]
[376576851,1754034639090,-2317.17584406,0.00026821,2]
[376576852,1754034639099,-583.07580385,0.00026827,2]
[376576853,1754034639108,-500.0,0.00026827,2]
[376576854,1754034639118,-500.0,0.00026827,2]
[376576855,1754034639127,-424.81999783,0.00026827,2]
[376576856,1754034639137,-500.0,0.00026827,2]
[376576857,1754034639146,-500.0,0.00026827,2]
[376576858,1754034639158,-500.0,0.00026827,2]
[376576859,1754034639167,-95869.37038751,0.00026828,2]
[376576860,1754034639177,-2317.17584406,0.00026838,2]
[376576861,1754034639186,-271.95,0.00026861,7]
[376576862,1754034639195,-163.15469065,0.00026873,2]
[376576863,1754034639204,-153025.520295,0.0002688,2]
[376576864,1754034639213,-151.0,0.00026893,7]
[376576865,1754034639222,-151.01946265,0.00026893,7]
[376576866,1754034639231,-151.00466912,0.00026893,7]
[376576867,1754034639240,-448.0,0.00026893,7]
[376576868,1754034639250,-300.24277656,0.00026893,7]
[376576869,1754034639259,-151.0,0.00026893,7]
[376576870,1754034639268,-151.48052824,0.00026893,7]
[376576871,1754034639277,-152.17324178,0.00026893,7]
[376576872,1754034639287,-151.0,0.00026893,7]
[376576873,1754034639296,-151.0,0.00026893,7]
[376576874,1754034639305,-151.45770566,0.00026893,7]
[376576875,1754034639314,-151.0,0.00026893,7]
[376576876,1754034639323,-151.0,0.000269,11]
[376576877,1754034639332,-149701.97728593,0.000269,4]
[376576892,1754034640857,-101.85868235,0.000269,4]
[376576894,1754034640870,-368.43763188,0.000269,4]
[376576900,1754034640922,-465.0,0.000269,4]
[376576902,1754034640934,-3941.26134969,0.000269,4]
[376576905,1754034640945,-64831.73505015,0.000269,4]
[376576907,1754034640955,-151.0,0.000269,11]
[376576909,1754034640965,-153.89926641,0.000269,11]
[376576911,1754034640975,-151.0,0.000269,11]
[376576913,1754034640984,-151.83022096,0.000269,11]
[376576915,1754034640994,-211.91127905,0.00026927,2]
[376576917,1754034641004,-19906.1500136,0.00026927,2]
[376576919,1754034641013,-151.0,0.00026928,7]
[376576921,1754034641023,-218.300134,0.00026928,7]
[376576923,1754034641033,-151.0,0.00026928,7]
[376576925,1754034641042,-151.0,0.00026928,7]
[376576926,1754034641051,-151.0,0.00026928,7]
[376576927,1754034641060,-151.0,0.00026928,7]
[376576928,1754034641069,-151.0,0.00026928,7]
[376576929,1754034641079,-151.0,0.00026928,7]
[376576930,1754034641088,-151.0,0.00026928,7]
[376576931,1754034641097,-151.0,0.00026928,7]
[376576932,1754034641106,-151.0,0.00026928,7]
[376576933,1754034641115,-151.0,0.00026928,7]
[376576934,1754034641124,-151.0,0.00026928,7]
[376576935,1754034641133,-151.0,0.00026928,7]
[376576936,1754034641142,-151.0,0.00026928,7]
[376576937,1754034641154,-151.0,0.00026928,7]
[376576938,1754034641163,-151.0,0.00026928,7]
[376576939,1754034641172,-151.0,0.00026928,7]
[376576940,1754034641182,-151.0,0.00026928,7]
[376576941,1754034641192,-151.0,0.00026928,7]
[376576942,1754034641201,-151.0,0.00026928,7]
[376576943,1754034641210,-151.0,0.00026928,7]
[376576944,1754034641221,-151.0,0.00026928,7]
[376576945,1754034641231,-187.2744,0.00026928,7]
[376576946,1754034641240,-151.0,0.00026928,7]
[376576947,1754034641250,-151.0,0.00026928,7]
[376576948,1754034641259,-151.0,0.00026928,7]
[376576950,1754034641269,-151.0,0.00026928,7]
[376576951,1754034641278,-151.0,0.00026928,7]
[376576953,1754034641288,-151.0,0.00026928,7]
[376576955,1754034641298,-151.0,0.00026928,7]
[376576957,1754034641308,-151.0,0.00026928,7]
[376576959,1754034641318,-177.240783,0.00026928,7]
[376576961,1754034641327,-151.0,0.00026928,7]
[376576963,1754034641336,-151.0,0.00026928,7]
[376576965,1754034641346,-151.0,0.00026928,7]
[376576967,1754034641355,-266.378684,0.00026928,7]
[376576969,1754034641364,-151.0,0.00026928,7]
[376576971,1754034641373,-151.0,0.00026928,7]
[376576973,1754034641383,-151.0,0.00026928,7]
[376576975,1754034641392,-151.0,0.00026928,7]
[376576977,1754034641404,-151.0,0.00026928,7]
[376576979,1754034641414,-151.0,0.00026928,7]
[376576981,1754034641423,-151.0,0.00026928,7]
[376576994,1754034641533,-151.0,0.00026928,7]
[376576997,1754034641544,-161.268,0.00026928,7]
[376576999,1754034641553,-151.0,0.00026928,7]
[376577001,1754034641562,-151.0,0.00026928,7]
[376577003,1754034641572,-151.0,0.00026928,7]
[376577005,1754034641581,-151.0,0.00026928,7]
[376577007,1754034641591,-151.0,0.00026928,7]
[376577009,1754034641600,-151.0,0.00026928,7]
[376577011,1754034641609,-151.0,0.00026928,7]
[376577013,1754034641618,-151.0,0.00026928,7]
[376577015,1754034641627,-151.0,0.00026928,7]
[376577017,1754034641637,-293.84523799,0.00026928,7]
[376577019,1754034641646,-151.0,0.00026928,7]
[376577021,1754034641659,-151.0,0.00026928,7]
[376577023,1754034641668,-151.0,0.00026928,7]
[376577025,1754034641678,-151.0,0.00026928,7]
[376577027,1754034641687,-151.0,0.00026928,7]
[376577029,1754034641699,-151.0,0.00026928,7]
[376577030,1754034641709,-151.0,0.00026928,7]
[376577033,1754034641719,-151.0,0.00026928,7]
[376577035,1754034641729,-151.0,0.00026928,7]
[376577037,1754034641738,-151.0,0.00026928,7]
[376577038,1754034641747,-735.150207,0.00026928,7]
[376577041,1754034641757,-735.150207,0.00026928,7]
[376577043,1754034641766,-735.150207,0.00026928,7]
[376577045,1754034641777,-735.150207,0.00026928,7]
[376577047,1754034641786,-735.150207,0.00026928,7]
[376577048,1754034641796,-735.150207,0.00026928,7]
[376577050,1754034641805,-735.150207,0.00026928,7]
[376577052,1754034641814,-735.150207,0.00026928,7]
[376577055,1754034641824,-735.150207,0.00026928,7]
[376577057,1754034641833,-735.150207,0.00026928,7]
[376577059,1754034641843,-735.150207,0.00026928,7]
[376577061,1754034641853,-735.150207,0.00026928,7]
[376577063,1754034641863,-735.150207,0.00026928,7]
[376577065,1754034641873,-735.150207,0.00026928,7]
[376577067,1754034641883,-735.150207,0.00026928,7]
[376577069,1754034641892,-735.150207,0.00026928,7]
[376577071,1754034641903,-735.150207,0.00026928,7]
[376577073,1754034641914,-735.150207,0.00026928,7]
[376577075,1754034641923,-735.150207,0.00026928,7]
[376577077,1754034641932,-735.150209,0.00026928,7]
[376577079,1754034641942,-151.0,0.00026928,7]
[376577081,1754034641951,-312.16666667,0.00026928,7]
[376577083,1754034641961,-800.96,0.00026932,7]
[376577084,1754034641971,-526.925583,0.00026938,30]
[376577087,1754034641980,-5963.17199721,0.00026938,2]
[376577088,1754034641990,-151.0,0.00026938,7]
[376577090,1754034642000,-151.0,0.00026938,7]
[376577093,1754034642011,-151.0,0.00026938,7]
[376577095,1754034642020,-151.0,0.00026938,7]
[376577097,1754034642029,-151.0,0.00026938,7]
[376577099,1754034642039,-151.0,0.00026938,7]
[376577101,1754034642049,-151.0,0.00026938,7]
[376577103,1754034642059,-151.0,0.00026938,7]
[376577105,1754034642068,-151.0,0.00026938,7]
[376577107,1754034642078,-151.0,0.00026938,7]
[376577108,1754034642088,-151.0,0.00026938,7]
[376577110,1754034642101,-151.0,0.00026938,7]
[376577113,1754034642110,-151.0,0.00026938,7]
[376577115,1754034642119,-151.0,0.00026938,7]
[376577117,1754034642129,-151.0,0.00026938,7]
[376577118,1754034642139,-151.0,0.00026938,7]
[376577120,1754034642149,-151.0,0.00026938,7]
[376577123,1754034642159,-151.0,0.00026938,7]
[376577124,1754034642168,-151.0,0.00026938,7]
[376577126,1754034642177,-151.0,0.00026938,7]
[376577128,1754034642187,-151.0,0.00026938,7]
[376577130,1754034642196,-151.0,0.00026938,7]
[376577133,1754034642206,-151.0,0.00026938,7]
[376577135,1754034642215,-151.0,0.00026938,7]
[376577136,1754034642225,-151.0,0.00026938,7]
[376577139,1754034642235,-151.0,0.00026938,7]
[376577141,1754034642244,-151.0,0.00026938,7]
[376577143,1754034642254,-223.07376,0.00026938,7]
[376577145,1754034642263,-151.0,0.00026938,7]
[376577147,1754034642272,-151.0,0.00026938,7]
[376577149,1754034642282,-151.0,0.00026938,7]
[376577151,1754034642293,-151.0,0.00026938,7]
[376577153,1754034642302,-151.0,0.00026938,7]
[376577155,1754034642312,-151.0,0.00026938,7]
[376577157,1754034642322,-151.0,0.00026938,7]
[376577159,1754034642331,-151.0,0.00026938,7]
[376577161,1754034642340,-151.0,0.00026938,7]
[376577163,1754034642349,-151.0,0.00026938,7]
[376577165,1754034642359,-151.0,0.00026938,7]
[376577167,1754034642368,-151.0,0.00026938,7]
[376577169,1754034642377,-151.0,0.00026938,7]
[376577171,1754034642387,-169.176494,0.00026938,7]
[376577173,1754034642396,-151.0,0.00026938,7]
[376577175,1754034642407,-151.0,0.00026938,7]
[376577177,1754034642416,-151.0,0.00026938,7]
[376577179,1754034642425,-151.0,0.00026938,7]
[376577181,1754034642434,-151.0,0.00026938,7]
[376577183,1754034642444,-151.0,0.00026938,7]
[376577185,1754034642454,-151.0,0.00026938,7]
[376577187,1754034642463,-151.0,0.00026938,7]
[376577189,1754034642473,-151.0,0.00026938,7]
[376577191,1754034642482,-151.0,0.00026938,7]
[376577193,1754034642493,-151.0,0.00026938,7]
[376577196,1754034642508,-151.0,0.00026938,7]
[376577198,1754034642522,-151.0,0.00026938,7]
[376577201,1754034642536,-151.0,0.00026938,7]
[376577203,1754034642547,-151.0,0.00026938,7]
[376577205,1754034642559,-151.0,0.00026938,7]
[376577208,1754034642573,-151.0,0.00026938,7]
[376577210,1754034642586,-255.186038,0.00026938,7]
[376577213,1754034642600,-152.132842,0.00026938,7]
[376577215,1754034642614,-312.16666667,0.00026938,30]
[376577218,1754034642627,-312.16666667,0.00026938,7]
[376577220,1754034642641,-43564.40462365,0.00026938,20]
[376577223,1754034642665,-35367.23215855,0.00026938,20]
[376577226,1754034642682,-1820.15365623,0.00026938,20]
[376577622,1754034646547,-499.86972676,0.00026938,20]
[376577623,1754034646562,-20656.8,0.00026938,20]
[376577624,1754034646575,-15251.63131164,0.00026938,20]
[376577625,1754034646590,-988.59134129,0.00026938,20]
[376577627,1754034646805,-16.9511403,0.00026938,20]
[376577730,1754035643107,-293.33988594,0.00022549,6]
[376577731,1754035643630,-108.76153752,0.00022677,4]
[376577854,1754035839756,-150.0,0.00020577,2]
[376577856,1754035839765,-171.59705352,0.00022677,4]
[376577858,1754035839775,-181.3,0.00022677,2]
[376577860,1754035839784,-171.5970535,0.00022704,4]
[376577862,1754035839794,-171.5970535,0.00022731,4]
[376577864,1754035839804,-112.35948068,0.00022777,2]
[376577868,1754035839834,-887.64051932,0.00022777,2]
[376577870,1754035839843,-222.490524,0.00022831,2]
[376577872,1754035839853,-177.87,0.00023,2]
[376577874,1754035839863,-400.1,0.00023,2]
[376577876,1754035839874,-181.3,0.00023508,2]
[376577878,1754035839885,-724.2437511,0.00023773,2]
[376577880,1754035839895,-12644.26590849,0.00023806,2]
[376577882,1754035839904,-300.0,0.0002381,2]
[376577884,1754035839913,-300.0,0.0002381,2]
[376577886,1754035839923,-300.0,0.0002381,2]
[376577888,1754035839932,-1200.0,0.0002381,2]
[376577890,1754035839942,-1787.01904686,0.00023811,2]
[376577892,1754035839952,-216.22890603,0.00023811,2]
[376577894,1754035839962,-160.0,0.00023811,2]
[376577896,1754035839971,-231.52694941,0.00023811,2]
[376577898,1754035839981,-215.03686253,0.00023811,2]
[376577900,1754035839991,-160.0,0.00023811,2]
[376577902,1754035840000,-160.0,0.00023811,2]
[376577904,1754035840009,-160.0,0.00023811,2]
[376577906,1754035840019,-841.53699354,0.00023811,2]
[376577909,1754035840034,-175.69,0.00023863,10]
[376577911,1754035840045,-878.45,0.00023863,10]
[376577913,1754035840055,-168.54959549,0.00023869,5]
[376577915,1754035840064,-74176.71350337,0.0002387,2]
[376577917,1754035840075,-500.0,0.00023873,2]
[376577920,1754035840085,-501.57607859,0.00023873,2]
[376577923,1754035840094,-502.43638085,0.00023873,2]
[376577925,1754035840103,-500.0,0.00023873,2]
[376577928,1754035840113,-500.0,0.00023873,2]
[376577930,1754035840122,-514.09427306,0.00023873,2]
[376577932,1754035840132,-500.0,0.00023873,2]
[376577933,1754035840142,-604.2182806,0.00023873,2]
[376577936,1754035840151,-541.01286707,0.00023873,2]
[376577938,1754035840161,-500.96612758,0.00023873,2]
[376577940,1754035840172,-500.0,0.00023873,2]
[376577942,1754035840182,-500.0,0.00023873,2]
[376577944,1754035840194,-500.0,0.00023873,2]
[376577946,1754035840203,-636.20850914,0.00023873,2]
[376577948,1754035840213,-631.98020317,0.00023873,2]
[376577950,1754035840223,-500.0,0.00023873,2]
[376577952,1754035840232,-502.61642722,0.00023873,2]
[376577954,1754035840242,-978.21,0.000239,7]
[376577956,1754035840251,-724.24375103,0.00024212,2]
[376577958,1754035840261,-200.0,0.00024292,15]
[376577960,1754035840271,-200.0,0.00024292,15]
[376577962,1754035840280,-200.0,0.00024292,15]
[376577964,1754035840291,-200.0,0.00024292,15]
[376577966,1754035840301,-200.0,0.00024292,15]
[376577968,1754035840311,-181.3,0.00024339,2]
[376577970,1754035840321,-556.76521702,0.00024421,2]
[376577973,1754035840331,-501.31460294,0.00024421,2]
[376577976,1754035840340,-895.59999331,0.00024421,2]
[376577979,1754035840350,-500.0,0.00024421,2]
[376577981,1754035840359,-1000.0,0.00024421,2]
[376577983,1754035840369,-500.0,0.00024421,2]
[376577985,1754035840379,-724.24375103,0.00024651,2]
[376577987,1754035840388,-500.0,0.00024873,2]
[376577989,1754035840397,-171.56118121,0.00024873,2]
[376577991,1754035840407,-500.0,0.00024873,2]
[376577993,1754035840417,-500.0,0.00024873,2]
[376577995,1754035840427,-500.0,0.00024873,2]
[376577997,1754035840437,-500.0,0.00024873,2]
[376577999,1754035840451,-500.0,0.00024873,2]
[376578000,1754035840460,-500.0,0.00024873,2]
[376578002,1754035840469,-500.0,0.00024873,2]
[376578004,1754035840478,-211.41,0.0002489,3]
[376578006,1754035840488,-634.27,0.0002489,3]
[376578008,1754035840497,-500.0,0.00024899,2]
[376578010,1754035840506,-500.0,0.00024899,2]
[376578012,1754035840515,-355.66498392,0.00024899,2]
[376578014,1754035840525,-500.0,0.00024899,2]
[376578016,1754035840534,-500.0,0.00024899,2]
[376578018,1754035840543,-500.0,0.00024899,2]
[376578020,1754035840553,-3300.68006571,0.000249,2]
[376578026,1754035840585,-49159.72409773,0.000249,2]
[376578029,1754035840608,-752.55185998,0.000249,2]
[376578031,1754035840619,-3242.72431476,0.000249,2]
[376578033,1754035840630,-3144.18313553,0.000249,2]
[376578036,1754035840642,-269.84011347,0.000249,2]
[376578038,1754035840657,-288.33317814,0.000249,2]
[376578040,1754035840668,-4533.80382641,0.000249,2]
[376578043,1754035840679,-22961.998,0.000249,2]
[376578045,1754035840691,-1552.15,0.000249,2]
[376578047,1754035840703,-661.88595233,0.000249,2]
[376578049,1754035840715,-3076.27587795,0.000249,2]
[376578052,1754035840727,-416.59023131,0.000249,2]
[376578054,1754035840738,-3601.77505616,0.000249,2]
[376578056,1754035840749,-1591.16679297,0.000249,2]
[376578110,1754035841255,-31518.00974855,0.000249,2]
[376578112,1754035841265,-164.45,0.00025065,2]
[376578114,1754035841274,-724.24375103,0.0002509,2]
[376578116,1754035841283,-181.3,0.0002517,7]
[376578118,1754035841292,-1000.0,0.00025421,2]
[376578120,1754035841301,-1000.0,0.00025421,2]
[376578122,1754035841310,-1000.0,0.00025421,2]
[376578124,1754035841320,-500.0,0.00025425,2]
[376578126,1754035841329,-151.0,0.00025558,2]
[376578128,1754035841338,-151.0,0.00025558,2]
[376578130,1754035841347,-151.0,0.00025558,2]
[376578132,1754035841356,-151.0,0.00025558,2]
[376578134,1754035841365,-151.0,0.00025558,2]
[376578136,1754035841377,-151.0,0.00025558,2]
[376578138,1754035841387,-151.0,0.00025558,2]
[376578140,1754035841396,-151.0,0.00025558,2]
[376578142,1754035841406,-151.0,0.00025558,2]
[376578144,1754035841416,-151.0,0.00025558,2]
[376578146,1754035841425,-151.0,0.00025558,2]
[376578148,1754035841434,-151.0,0.00025558,2]
[376578150,1754035841443,-151.0,0.00025558,2]
[376578152,1754035841453,-151.0,0.00025558,2]
[376578154,1754035841463,-151.0,0.00025558,2]
[376578156,1754035841472,-151.0,0.00025558,2]
[376578158,1754035841481,-151.0,0.00025558,2]
[376578160,1754035841491,-151.0,0.00025558,2]
[376578161,1754035841502,-151.0,0.00025558,2]
[376578164,1754035841513,-151.0,0.00025558,2]
[376578165,1754035841523,-150.0,0.00025577,2]
[376578168,1754035841533,-500.0,0.000256,2]
[376578170,1754035841542,-500.0,0.000256,2]
[376578172,1754035841552,-501.2299302,0.000256,2]
[376578174,1754035841561,-500.0,0.000256,2]
[376578175,1754035841571,-5109.87792237,0.000258,4]
[376578177,1754035841581,-420.0,0.00025826,2]
[376578179,1754035841591,-500.0,0.00025968,2]
[376578182,1754035841600,-181.3,0.00026,7]
[376578184,1754035841610,-252.41056455,0.000261,2]
[376578186,1754035841622,-1098.51789336,0.00026148,2]
[376578197,1754035841728,-150.0,0.00026246,2]
[376578199,1754035841738,-422.82,0.0002626,3]
[376578201,1754035841748,-2000.0,0.000265,2]
[376578203,1754035841758,-200.0,0.00026573,2]
[376578205,1754035841767,-31131.01611208,0.0002659,2]
[376578208,1754035841781,-767.091838,0.0002659,2]
[376578210,1754035841793,-737.91395628,0.0002659,2]
[376578212,1754035841804,-11453.0,0.0002659,2]
[376578215,1754035841816,-4300.88129639,0.0002659,2]
[376578472,1754035847305,-407.0,0.00024485,2]
[376578474,1754035847314,-2205.5,0.0002659,2]
[376578484,1754035847404,-362.33930169,0.0002659,2]
[376578487,1754035847417,-14078.10362086,0.0002659,2]
[376578489,1754035847427,-4058.40194558,0.000266,5]
[376578491,1754035847440,-1941.59805442,0.000266,5]
[376578493,1754035847450,-200.0,0.0002665,15]
[376578495,1754035847459,-200.0,0.0002665,15]
[376578497,1754035847469,-200.0,0.0002665,15]
[376578499,1754035847478,-200.0,0.0002665,15]
[376578501,1754035847488,-200.0,0.0002665,15]
[376578503,1754035847497,-200.0,0.0002665,15]
[376578504,1754035847507,-200.0,0.0002665,15]
[376578506,1754035847517,-151.0,0.000267,12]
[376578508,1754035847527,-181.3,0.00026831,7]
[376578509,1754035847537,-500.0,0.00026887,2]
[376578511,1754035847547,-583.07580385,0.00026887,2]
[376578513,1754035847556,-500.0,0.00026887,2]
[376578515,1754035847565,-500.0,0.00026887,2]
[376578517,1754035847574,-500.0,0.00026887,2]
[376578518,1754035847584,-500.0,0.00026887,2]
[376578520,1754035847593,-500.0,0.00026887,2]
[376578522,1754035847603,-500.0,0.00026887,2]
[376578523,1754035847611,-500.0,0.00026887,2]
[376578524,1754035847623,-500.0,0.00026887,2]
[376578526,1754035847632,-106743.86731394,0.00026888,2]
[376578529,1754035847645,-121137.54150817,0.00026888,2]
[376578531,1754035847654,-29326.58987563,0.0002689,2]
[376578533,1754035847666,-1849.65755344,0.0002689,2]
[376578535,1754035847677,-691.80252404,0.0002689,2]
[376578538,1754035847696,-1338.42000014,0.0002689,2]
[376578719,1754035902517,196.115052,0.00013699,2]
[376578722,1754036004703,440.0,0.00026027,120]
[376578748,1754036813122,-167.96,0.0002,2]
[376578749,1754036813144,-37.71722804,0.00020187,2]
[376578753,1754036884188,-158.39782396,0.00020187,2]
[376578770,1754036946105,-784.0,0.0002,2]
[376578771,1754036957003,187.086682,0.00013699,2]
[376578772,1754036958303,-75.67381103,0.0002,2]
[376578773,1754036958337,-78.08711796,0.00020187,2]
[376578814,1754037031911,-108.99956404,0.00020187,2]
[376578815,1754037031922,-521.78061539,0.00022368,2]
[376578816,1754037031933,-2241.41143421,0.0002249,7]
[376578817,1754037031944,-3055.88115134,0.0002249,7]
[376578820,1754037031954,-1200.0,0.00022999,2]
[376578823,1754037031963,-2726.0,0.00023,7]
[376578826,1754037031973,-160.09,0.000232,2]
[376578829,1754037031982,-222.490524,0.00023348,2]
[376578830,1754037031991,-216.22890603,0.00023802,2]
[376578831,1754037032000,-841.53699354,0.00023802,2]
[376578832,1754037032010,-300.0,0.00023806,2]
[376578833,1754037032019,-460.76838597,0.00023807,2]
[376578834,1754037032028,-160.0,0.00023807,2]
[376578835,1754037032037,-160.0,0.00023807,2]
[376578836,1754037032046,-160.0,0.00023807,2]
[376578837,1754037032056,-526.925583,0.00023807,2]
[376578838,1754037032065,-160.0,0.00023807,2]
[376578839,1754037032074,-160.0,0.00023812,2]
[376578840,1754037032083,-1696.96619978,0.00024,2]
[376578841,1754037032091,-10169.66896552,0.00024,2]
[376578842,1754037032101,-162.23582784,0.00024,2]
[376578843,1754037032110,-500.0,0.0002425,2]
[376578844,1754037032120,-274.56577501,0.0002425,2]
[376578845,1754037032129,-500.0,0.0002425,2]
[376578846,1754037032138,-500.36439739,0.0002425,2]
[376578847,1754037032148,-200.0,0.00024287,15]
[376578848,1754037032158,-200.0,0.00024287,15]
[376578850,1754037032168,-200.0,0.00024287,15]
[376578851,1754037032178,-200.0,0.00024287,15]
[376578853,1754037032188,-200.0,0.00024287,15]
[376578855,1754037032198,-628.86837346,0.00024287,2]
[376578856,1754037032207,-500.0,0.000243,2]
[376578858,1754037032217,-500.0,0.0002435,2]
[376578860,1754037032227,-500.0,0.00024388,2]
[376578861,1754037032236,-500.0,0.00024388,2]
[376578863,1754037032246,-500.0,0.00024388,2]
[376578864,1754037032255,-500.0,0.00024464,2]
[376578866,1754037032264,-500.0,0.00024464,2]
[376578868,1754037032274,-502.07853402,0.00024464,2]
[376578869,1754037032284,-500.0,0.0002447,2]
[376578870,1754037032293,-226.4347845,0.0002448,2]
[376578871,1754037032302,-500.0,0.0002448,2]
[376578872,1754037032311,-501.57154732,0.0002448,2]
[376578873,1754037032321,-500.67139671,0.0002448,2]
[376578874,1754037032330,-500.0,0.0002448,2]
[376578876,1754037032340,-505.10273347,0.0002448,2]
[376578878,1754037032349,-500.0,0.0002448,2]
[376578879,1754037032360,-500.0,0.00024528,2]
[376578880,1754037032372,-500.2604742,0.00024557,2]
[376578881,1754037032382,-503.54914706,0.00024557,2]
[376578882,1754037032391,-500.0,0.00024557,2]
[376578883,1754037032401,-500.0,0.00024557,2]
[376578884,1754037032411,-501.38271662,0.00024557,2]
[376578885,1754037032420,-500.0,0.00024557,2]
[376578886,1754037032430,-501.53674406,0.00024557,2]
[376578887,1754037032440,-500.0,0.00024557,2]
[376578888,1754037032450,-628.86837345,0.00024655,2]
[376578889,1754037032459,-1000.0,0.00024798,2]
[376578890,1754037032468,-500.0,0.00024802,2]
[376578891,1754037032478,-1000.0,0.00024848,2]
[376578892,1754037032487,-1000.0,0.00024898,2]
[376578893,1754037032496,-501.62526512,0.00024935,2]
[376578894,1754037032505,-1000.0,0.00024935,2]
[376578895,1754037032514,-752.61428759,0.00025012,2]
[376578896,1754037032524,-1000.0,0.00025012,2]
[376578897,1754037032533,-1000.0,0.00025018,2]
[376578898,1754037032542,-628.86837345,0.00025022,2]
[376578899,1754037032551,-1000.0,0.00025028,2]
[376578900,1754037032561,-1000.0,0.00025028,2]
[376578901,1754037032570,-407.0,0.00025045,2]
[376578902,1754037032579,-500.0,0.00025076,2]
[376578903,1754037032588,-150.0,0.00025091,2]
[376578904,1754037032598,-500.83420291,0.00025105,2]
[376578905,1754037032608,-505.18533777,0.00025105,2]
[376578906,1754037032618,-1000.0,0.00025105,2]
[376578907,1754037032627,-1500.0,0.00025346,2]
[376578908,1754037032637,-500.0,0.0002535,2]
[376578909,1754037032646,-628.86837345,0.0002539,2]
[376578910,1754037032656,-358.45193933,0.00025396,2]
[376578911,1754037032665,-1500.0,0.00025446,2]
[376578912,1754037032675,-1500.0,0.00025483,2]
[376578913,1754037032684,-1346.82045989,0.0002556,2]
[376578914,1754037032693,-393.59923246,0.00025566,2]
[376578915,1754037032703,-500.0,0.00025653,2]
[376578916,1754037032712,-628.86837345,0.00025757,2]
[376578917,1754037032721,-420.0,0.00025821,2]
[376578918,1754037032730,-2000.0,0.00025894,2]
[376578919,1754037032740,-500.0,0.00025973,2]
[376578920,1754037032750,-500.0,0.00025973,2]
[376578921,1754037032759,-500.0,0.00025973,2]
[376578922,1754037032768,-642.64430472,0.00025973,2]
[376578923,1754037032778,-500.0,0.00025973,2]
[376578924,1754037032787,-161.91291521,0.00025973,2]
[376578925,1754037032800,-500.0,0.00025973,2]
[376578926,1754037032809,-500.0,0.00025973,2]
[376578927,1754037032819,-410.00042419,0.00025973,2]
[376578928,1754037032832,-89.99957581,0.00025973,2]
[376578929,1754037032841,-500.0,0.00025973,2]
[376578930,1754037032852,-500.0,0.00025973,2]
[376578931,1754037032861,-500.0,0.00025973,2]
[376578932,1754037032871,-500.0,0.00025973,2]
[376578933,1754037032880,-503.56560902,0.00025973,2]
[376578934,1754037032890,-500.0,0.00025973,2]
[376578935,1754037032900,-500.0,0.00025973,2]
[376578936,1754037032909,-645.21682791,0.00025973,2]
[376578937,1754037032919,-500.0,0.00025973,2]
[376578938,1754037032928,-500.0,0.00025973,2]
[376578939,1754037032938,-500.0,0.00025973,2]
[376578940,1754037032947,-500.0,0.00025973,2]
[376578941,1754037032956,-500.0,0.00025973,2]
[376578942,1754037032966,-2000.0,0.00025994,2]
[376578943,1754037032976,-53813.40589127,0.00026,30]
[376578944,1754037032986,-1446.89120276,0.00026031,2]